[Event "Early-Titled-Tuesday-Blitz-February-27-2024"]
[Site "Chess.com"]
[Date "2024.02.27"]
[Round "10"]
[White "ricaurtelopezj1955"]
[Black "UnTucopalaTimba"]
[Result "1-0"]
[WhiteElo "2169"]
[BlackElo "1986"]
[TimeControl "180+1"]
[EndTime "9:55:37 PST"]
[Termination "ricaurtelopezj1955 won on time"]

1. e4 {[%clk 0:03:00.9]} 1... c6 {[%clk 0:02:59.8]} 2. d4 {[%clk 0:02:59.3]}
2... d5 {[%clk 0:03:00.7]} 3. exd5 {[%clk 0:02:58.3]} 3... cxd5 {[%clk
0:03:00.5]} 4. c4 {[%clk 0:02:56.4]} 4... Nf6 {[%clk 0:02:57.7]} 5. Nc3 {[%clk
0:02:54.5]} 5... Nc6 {[%clk 0:02:56.5]} 6. Bg5 {[%clk 0:02:52.6]} 6... e6 {[%clk
0:02:51.1]} 7. Nf3 {[%clk 0:02:48.3]} 7... h6 {[%clk 0:02:46.3]} 8. Bh4 {[%clk
0:02:45.9]} 8... Bb4 {[%clk 0:02:43.3]} 9. Qb3 {[%clk 0:02:38.7]} 9... O-O
{[%clk 0:02:25.7]} 10. Bd3 {[%clk 0:02:27.2]} 10... dxc4 {[%clk 0:02:22]} 11.
Bxc4 {[%clk 0:02:25.8]} 11... Be7 {[%clk 0:02:07.6]} 12. Qd1 {[%clk 0:01:48.4]}
12... Qb6 {[%clk 0:02:04.6]} 13. O-O {[%clk 0:01:42.7]} 13... Qxb2 {[%clk
0:02:01.7]} 14. Nb5 {[%clk 0:01:27.2]} 14... Qb4 {[%clk 0:01:42.3]} 15. Qd3
{[%clk 0:01:24.9]} 15... Qa5 {[%clk 0:01:22.8]} 16. Rab1 {[%clk 0:01:18.5]}
16... a6 {[%clk 0:01:21.2]} 17. Nc3 {[%clk 0:01:15.2]} 17... b5 {[%clk
0:01:14.9]} 18. Bb3 {[%clk 0:01:04.9]} 18... Qc7 {[%clk 0:01:08.1]} 19. Bg3
{[%clk 0:00:58.2]} 19... Bd6 {[%clk 0:01:06.5]} 20. d5 {[%clk 0:00:52.3]} 20...
Nb4 {[%clk 0:00:58.2]} 21. Qd4 {[%clk 0:00:46.7]} 21... Bxg3 {[%clk 0:00:52.3]}
22. Qxb4 {[%clk 0:00:43.5]} 22... Bd6 {[%clk 0:00:48.6]} 23. Qd4 {[%clk
0:00:41.4]} 23... exd5 {[%clk 0:00:40.3]} 24. Nxd5 {[%clk 0:00:37.9]} 24... Nxd5
{[%clk 0:00:39.6]} 25. Qxd5 {[%clk 0:00:37.2]} 25... Be6 {[%clk 0:00:36.6]} 26.
Qd3 {[%clk 0:00:32.4]} 26... Bxb3 {[%clk 0:00:27.9]} 27. axb3 {[%clk 0:00:29.8]}
27... Rad8 {[%clk 0:00:26.1]} 28. Qf5 {[%clk 0:00:26.9]} 28... Qb6 {[%clk
0:00:19.9]} 29. Rbc1 {[%clk 0:00:25]} 29... Bb4 {[%clk 0:00:18.3]} 30. Ne5
{[%clk 0:00:20.2]} 30... Rd5 {[%clk 0:00:12.4]} 31. Qe4 {[%clk 0:00:18.7]} 31...
Qe6 {[%clk 0:00:12]} 32. f4 {[%clk 0:00:16.1]} 32... Bc5+ {[%clk 0:00:10.3]} 33.
Kh1 {[%clk 0:00:13.8]} 33... Be7 {[%clk 0:00:09.3]} 34. Rc6 {[%clk 0:00:10.8]}
34... Rd6 {[%clk 0:00:06.3]} 35. Rfc1 {[%clk 0:00:07.8]} 35... Rxc6 {[%clk
0:00:06.1]} 36. Rxc6 {[%clk 0:00:06.5]} 36... Qxb3 {[%clk 0:00:05.8]} 37. h3
{[%clk 0:00:05.3]} 37... Bf6 {[%clk 0:00:05.3]} 38. Rxa6 {[%clk 0:00:04.3]}
38... Qd1+ {[%clk 0:00:03.8]} 39. Kh2 {[%clk 0:00:03.4]} 39... Re8 {[%clk
0:00:02.9]} 40. Qf5 {[%clk 0:00:02.7]} 40... Bxe5 {[%clk 0:00:02.5]} 41. fxe5
{[%clk 0:00:02.1]} 1-0

[Event "Early-Titled-Tuesday-Blitz-February-27-2024"]
[Site "Chess.com"]
[Date "2024.02.27"]
[Round "10"]
[White "alexrustemov"]
[Black "vladgoncharov"]
[Result "0-1"]
[WhiteElo "2814"]
[BlackElo "2656"]
[TimeControl "180+1"]
[EndTime "9:55:39 PST"]
[Termination "vladgoncharov won by checkmate"]

1. d4 {[%clk 0:03:00.9]} 1... Nf6 {[%clk 0:02:59.5]} 2. c4 {[%clk 0:03:01.3]}
2... e6 {[%clk 0:02:59.6]} 3. Nf3 {[%clk 0:03:01.9]} 3... c5 {[%clk 0:02:59.4]}
4. d5 {[%clk 0:03:01.1]} 4... exd5 {[%clk 0:02:59.5]} 5. cxd5 {[%clk 0:03:02]}
5... d6 {[%clk 0:03:00.1]} 6. Nc3 {[%clk 0:03:02.7]} 6... g6 {[%clk 0:03:00]} 7.
h3 {[%clk 0:03:03.4]} 7... Bg7 {[%clk 0:02:59.4]} 8. e4 {[%clk 0:03:04.1]} 8...
O-O {[%clk 0:02:58.9]} 9. Bd3 {[%clk 0:03:04.8]} 9... b5 {[%clk 0:02:58.4]} 10.
Bxb5 {[%clk 0:03:03.5]} 10... Nxe4 {[%clk 0:02:50.7]} 11. Nxe4 {[%clk
0:03:04.4]} 11... Qa5+ {[%clk 0:02:50.7]} 12. Nfd2 {[%clk 0:03:04.9]} 12... Qxb5
{[%clk 0:02:51]} 13. Nxd6 {[%clk 0:03:05.5]} 13... Qa6 {[%clk 0:02:38.1]} 14.
N2c4 {[%clk 0:03:05.8]} 14... Nd7 {[%clk 0:02:37]} 15. O-O {[%clk 0:03:06.2]}
15... Nb6 {[%clk 0:02:36.1]} 16. Nxb6 {[%clk 0:03:04.8]} 16... axb6 {[%clk
0:02:34.3]} 17. Qc2 {[%clk 0:02:57]} 17... Bd7 {[%clk 0:02:25.6]} 18. Rd1 {[%clk
0:02:47.2]} 18... Rfd8 {[%clk 0:02:12.7]} 19. Bg5 {[%clk 0:02:45]} 19... Ba4
{[%clk 0:02:08]} 20. b3 {[%clk 0:02:35.1]} 20... Rxd6 {[%clk 0:02:07.4]} 21.
bxa4 {[%clk 0:02:33.3]} 21... Bxa1 {[%clk 0:02:06.6]} 22. Rxa1 {[%clk
0:02:25.2]} 22... Qxa4 {[%clk 0:02:02.7]} 23. Qb2 {[%clk 0:02:20.3]} 23... Qd4
{[%clk 0:02:01.5]} 24. Qc1 {[%clk 0:02:04.3]} 24... Rxd5 {[%clk 0:01:54.2]} 25.
Bh6 {[%clk 0:01:56.8]} 25... f6 {[%clk 0:01:34.3]} 26. a3 {[%clk 0:01:46.2]}
26... g5 {[%clk 0:01:17.8]} 27. Rb1 {[%clk 0:01:39.6]} 27... Kf7 {[%clk
0:01:16]} 28. h4 {[%clk 0:01:20]} 28... Qxh4 {[%clk 0:01:01.3]} 29. Rxb6 {[%clk
0:01:10.7]} 29... Rad8 {[%clk 0:00:37.1]} 30. Rb7+ {[%clk 0:01:06.7]} 30... Kg8
{[%clk 0:00:36]} 31. Rb1 {[%clk 0:00:33.2]} 31... Qxh6 {[%clk 0:00:35]} 32. Qe1
{[%clk 0:00:31.1]} 32... Qg6 {[%clk 0:00:34.6]} 33. Qe6+ {[%clk 0:00:29.7]}
33... Qf7 {[%clk 0:00:34.5]} 34. Qe2 {[%clk 0:00:26.6]} 34... Kg7 {[%clk
0:00:33.7]} 35. g3 {[%clk 0:00:25.6]} 35... Re5 {[%clk 0:00:33.6]} 36. Qf3
{[%clk 0:00:23.3]} 36... Rde8 {[%clk 0:00:32.1]} 37. Kh2 {[%clk 0:00:19.6]}
37... R8e7 {[%clk 0:00:30.9]} 38. a4 {[%clk 0:00:19.6]} 38... Qd5 {[%clk
0:00:30.5]} 39. Qa3 {[%clk 0:00:11.3]} 39... Re2 {[%clk 0:00:27.9]} 40. Rf1
{[%clk 0:00:11.8]} 40... Ra7 {[%clk 0:00:22.1]} 41. a5 {[%clk 0:00:12.1]} 41...
c4 {[%clk 0:00:20.8]} 42. a6 {[%clk 0:00:12.1]} 42... Re6 {[%clk 0:00:20.6]} 43.
Rb1 {[%clk 0:00:04.5]} 43... Rexa6 {[%clk 0:00:19.8]} 44. Qe3 {[%clk 0:00:04.4]}
44... Rf7 {[%clk 0:00:17.8]} 45. Rb8 {[%clk 0:00:04]} 45... Re6 {[%clk
0:00:17.6]} 46. Qa3 {[%clk 0:00:02.2]} 46... Qd4 {[%clk 0:00:16.9]} 47. Qa8
{[%clk 0:00:02.1]} 47... Qxf2+ {[%clk 0:00:15.1]} 48. Kh3 {[%clk 0:00:02.7]}
48... Qf1+ {[%clk 0:00:15.1]} 49. Kg4 {[%clk 0:00:01.3]} 49... h5+ {[%clk
0:00:14.4]} 50. Kxh5 {[%clk 0:00:01]} 50... Qh3# {[%clk 0:00:14.7]} 0-1

[Event "Early-Titled-Tuesday-Blitz-February-27-2024"]
[Site "Chess.com"]
[Date "2024.02.27"]
[Round "10"]
[White "SlavenPastar"]
[Black "vovachesss"]
[Result "1-0"]
[WhiteElo "2642"]
[BlackElo "2752"]
[TimeControl "180+1"]
[EndTime "9:55:39 PST"]
[Termination "SlavenPastar won by checkmate"]

1. b3 {[%clk 0:03:00.9]} 1... b6 {[%clk 0:02:47.1]} 2. e4 {[%clk 0:02:59.3]}
2... Bb7 {[%clk 0:02:48]} 3. Nc3 {[%clk 0:02:57]} 3... g6 {[%clk 0:02:44.2]} 4.
d4 {[%clk 0:02:54.8]} 4... Bg7 {[%clk 0:02:45.1]} 5. Nf3 {[%clk 0:02:54.4]} 5...
Nf6 {[%clk 0:02:35.2]} 6. Bd3 {[%clk 0:02:53.4]} 6... c5 {[%clk 0:02:31.1]} 7.
Bb2 {[%clk 0:02:46.6]} 7... cxd4 {[%clk 0:02:30.1]} 8. Nxd4 {[%clk 0:02:43.2]}
8... O-O {[%clk 0:02:30.7]} 9. O-O {[%clk 0:02:40.5]} 9... d5 {[%clk 0:02:12.5]}
10. e5 {[%clk 0:02:36.8]} 10... Ne4 {[%clk 0:02:13]} 11. f4 {[%clk 0:02:23]}
11... Nc5 {[%clk 0:02:12.6]} 12. Be2 {[%clk 0:02:16.9]} 12... Nc6 {[%clk
0:02:12.4]} 13. Ncb5 {[%clk 0:02:03.2]} 13... Nxd4 {[%clk 0:02:11]} 14. Nxd4
{[%clk 0:02:04.1]} 14... Rc8 {[%clk 0:02:11.2]} 15. Kh1 {[%clk 0:01:50]} 15...
f6 {[%clk 0:01:34.5]} 16. Nf3 {[%clk 0:01:29.3]} 16... Ne4 {[%clk 0:01:31.6]}
17. c4 {[%clk 0:01:17.9]} 17... e6 {[%clk 0:01:24.2]} 18. exf6 {[%clk
0:01:16.7]} 18... Bxf6 {[%clk 0:01:22.5]} 19. Bxf6 {[%clk 0:01:07.2]} 19... Qxf6
{[%clk 0:01:23.4]} 20. Ne5 {[%clk 0:01:05.6]} 20... Qh4 {[%clk 0:01:18.7]} 21.
Qe1 {[%clk 0:00:47.4]} 21... Rxf4 {[%clk 0:01:14.8]} 22. Qxh4 {[%clk 0:00:41]}
22... Rxh4 {[%clk 0:01:15.7]} 23. Kg1 {[%clk 0:00:40.3]} 23... Nd6 {[%clk
0:00:59.6]} 24. Bf3 {[%clk 0:00:31.3]} 24... dxc4 {[%clk 0:00:31.3]} 25. Rad1
{[%clk 0:00:25]} 25... Ne4 {[%clk 0:00:17.7]} 26. Nxc4 {[%clk 0:00:19.1]} 26...
Rc7 {[%clk 0:00:16.7]} 27. g3 {[%clk 0:00:18.6]} 27... Rh6 {[%clk 0:00:12.1]}
28. Bg4 {[%clk 0:00:14.1]} 28... g5 {[%clk 0:00:11.7]} 29. Ne5 {[%clk
0:00:11.3]} 29... Rf6 {[%clk 0:00:10.4]} 30. Bf3 {[%clk 0:00:10.1]} 30... Kg7
{[%clk 0:00:09]} 31. Ng4 {[%clk 0:00:08.6]} 31... Rf5 {[%clk 0:00:07.4]} 32. Ne3
{[%clk 0:00:08.1]} 32... Rfc5 {[%clk 0:00:07.5]} 33. Nc4 {[%clk 0:00:08.2]}
33... b5 {[%clk 0:00:06.2]} 34. Nd6 {[%clk 0:00:06.3]} 34... Bd5 {[%clk
0:00:06]} 35. Nxe4 {[%clk 0:00:05.8]} 35... Rc2 {[%clk 0:00:04.4]} 36. Nxg5
{[%clk 0:00:05.2]} 36... Bxf3 {[%clk 0:00:02.8]} 37. Rxf3 {[%clk 0:00:03.8]}
37... R7c6 {[%clk 0:00:03.4]} 38. Rdf1 {[%clk 0:00:03.7]} 38... Kg6 {[%clk
0:00:04.3]} 39. h4 {[%clk 0:00:04.3]} 39... Rxa2 {[%clk 0:00:04.2]} 40. g4
{[%clk 0:00:04.5]} 40... Rcc2 {[%clk 0:00:02.8]} 41. Rf6+ {[%clk 0:00:04.7]}
41... Kg7 {[%clk 0:00:03.7]} 42. Rf7+ {[%clk 0:00:04.9]} 42... Kg8 {[%clk
0:00:04.2]} 43. Rf8+ {[%clk 0:00:05.4]} 43... Kg7 {[%clk 0:00:05.1]} 44. R1f7+
{[%clk 0:00:05.6]} 44... Kg6 {[%clk 0:00:04.5]} 45. Rg8+ {[%clk 0:00:05.7]}
45... Kh6 {[%clk 0:00:04.7]} 46. Rf6# {[%clk 0:00:06.2]} 1-0

[Event "Early-Titled-Tuesday-Blitz-February-27-2024"]
[Site "Chess.com"]
[Date "2024.02.27"]
[Round "10"]
[White "Yurovskykh_Oleksandr"]
[Black "jamengrand"]
[Result "1-0"]
[WhiteElo "2688"]
[BlackElo "2420"]
[TimeControl "180+1"]
[EndTime "9:55:39 PST"]
[Termination "Yurovskykh_Oleksandr won by resignation"]

1. d4 {[%clk 0:02:58.1]} 1... d5 {[%clk 0:03:00.2]} 2. Bf4 {[%clk 0:02:57.9]}
2... Nf6 {[%clk 0:03:00]} 3. e3 {[%clk 0:02:58.3]} 3... g6 {[%clk 0:02:57.6]} 4.
Nf3 {[%clk 0:02:57.8]} 4... Bg7 {[%clk 0:02:57.8]} 5. Be2 {[%clk 0:02:57.2]}
5... O-O {[%clk 0:02:54.5]} 6. O-O {[%clk 0:02:57.1]} 6... c5 {[%clk 0:02:54.7]}
7. c3 {[%clk 0:02:57.1]} 7... Nc6 {[%clk 0:02:54.5]} 8. h3 {[%clk 0:02:55.8]}
8... Nd7 {[%clk 0:02:54.4]} 9. Qb3 {[%clk 0:02:49.3]} 9... c4 {[%clk 0:02:41.4]}
10. Qa3 {[%clk 0:02:43.8]} 10... Qa5 {[%clk 0:02:19.3]} 11. Qxa5 {[%clk
0:02:40]} 11... Nxa5 {[%clk 0:02:18.9]} 12. Nbd2 {[%clk 0:02:40.5]} 12... Nc6
{[%clk 0:02:13.5]} 13. e4 {[%clk 0:02:39.7]} 13... e6 {[%clk 0:02:09.7]} 14.
Rfe1 {[%clk 0:02:38.2]} 14... Nb6 {[%clk 0:02:01.1]} 15. Bc7 {[%clk 0:02:32]}
15... dxe4 {[%clk 0:01:44.5]} 16. Nxe4 {[%clk 0:02:30.7]} 16... Nd5 {[%clk
0:01:44.6]} 17. Bd6 {[%clk 0:02:31.1]} 17... Rd8 {[%clk 0:01:43.1]} 18. Ba3
{[%clk 0:02:04]} 18... b5 {[%clk 0:01:41.4]} 19. Bc5 {[%clk 0:02:03.5]} 19...
Bf8 {[%clk 0:01:33.5]} 20. Bxf8 {[%clk 0:02:02.2]} 20... Kxf8 {[%clk 0:01:32.1]}
21. Nc5 {[%clk 0:02:02.3]} 21... Rb8 {[%clk 0:01:13.3]} 22. a3 {[%clk
0:02:01.9]} 22... Na5 {[%clk 0:01:07.5]} 23. Ne5 {[%clk 0:01:58.2]} 23... Rb6
{[%clk 0:00:56.1]} 24. Bf3 {[%clk 0:01:56.1]} 24... Ne7 {[%clk 0:00:54.1]} 25.
Rad1 {[%clk 0:01:42.1]} 25... Nb3 {[%clk 0:00:51.3]} 26. Nxb3 {[%clk 0:01:36.2]}
26... cxb3 {[%clk 0:00:51]} 27. Nd3 {[%clk 0:01:36]} 27... a5 {[%clk 0:00:46.6]}
28. Nc5 {[%clk 0:01:36.3]} 28... a4 {[%clk 0:00:45.9]} 29. Nd3 {[%clk
0:01:28.3]} 29... Bb7 {[%clk 0:00:42.6]} 30. Bxb7 {[%clk 0:01:25.4]} 30... Rxb7
{[%clk 0:00:43.5]} 31. Nb4 {[%clk 0:01:25.7]} 31... Rc7 {[%clk 0:00:39.9]} 32.
Re5 {[%clk 0:01:25.7]} 32... Nd5 {[%clk 0:00:39.6]} 33. Nxd5 {[%clk 0:01:22.4]}
33... Rxd5 {[%clk 0:00:39.1]} 34. Rde1 {[%clk 0:01:18]} 34... Rcd7 {[%clk
0:00:35.4]} 35. Kf1 {[%clk 0:01:17]} 35... Ke7 {[%clk 0:00:33.9]} 36. f4 {[%clk
0:01:11.4]} 36... Kd8 {[%clk 0:00:32.3]} 37. Ke2 {[%clk 0:01:10.9]} 37... Kc7
{[%clk 0:00:32.7]} 38. Kd3 {[%clk 0:01:11.3]} 38... Kc6 {[%clk 0:00:32.9]} 39.
g4 {[%clk 0:01:03.4]} 39... Rd8 {[%clk 0:00:28.5]} 40. h4 {[%clk 0:01:03.3]}
40... h6 {[%clk 0:00:24.9]} 41. R1e3 {[%clk 0:00:49.4]} 41... Kc7 {[%clk
0:00:20.5]} 42. Ke2 {[%clk 0:00:48.9]} 42... Kc6 {[%clk 0:00:20.8]} 43. Kf3
{[%clk 0:00:48.5]} 43... Rxe5 {[%clk 0:00:17]} 44. fxe5 {[%clk 0:00:49.4]} 44...
Kd5 {[%clk 0:00:16.1]} 45. Ke2 {[%clk 0:00:47.4]} 45... g5 {[%clk 0:00:15]} 46.
h5 {[%clk 0:00:44.5]} 46... Rd7 {[%clk 0:00:12.7]} 47. Rf3 {[%clk 0:00:43.8]}
47... Kc4 {[%clk 0:00:10.9]} 48. Kd2 {[%clk 0:00:41.1]} 48... b4 {[%clk
0:00:10.4]} 49. axb4 {[%clk 0:00:42]} 49... a3 {[%clk 0:00:10.7]} 50. bxa3
{[%clk 0:00:42.5]} 50... b2 {[%clk 0:00:09.5]} 51. Kc2 {[%clk 0:00:42.5]} 51...
b1=Q+ {[%clk 0:00:09.8]} 52. Kxb1 {[%clk 0:00:42.8]} 52... Kb3 {[%clk
0:00:10.4]} 53. a4 {[%clk 0:00:41]} 53... Kxa4 {[%clk 0:00:08.7]} 54. Kc2 {[%clk
0:00:41.1]} 54... Kb5 {[%clk 0:00:07.7]} 55. Kb3 {[%clk 0:00:41.4]} 55... Ra7
{[%clk 0:00:07.6]} 56. Rf1 {[%clk 0:00:40.9]} 56... Kc6 {[%clk 0:00:07.4]} 57.
Kc4 {[%clk 0:00:40.5]} 57... Ra2 {[%clk 0:00:05.9]} 58. Rxf7 {[%clk 0:00:40.9]}
58... Re2 {[%clk 0:00:03.8]} 59. Rf6 {[%clk 0:00:41]} 59... Re4 {[%clk
0:00:03.6]} 60. Rxe6+ {[%clk 0:00:41.5]} 60... Kc7 {[%clk 0:00:03.9]} 61. Rxh6
{[%clk 0:00:42.4]} 61... Rxg4 {[%clk 0:00:03.9]} 62. Rg6 {[%clk 0:00:43]} 62...
Rh4 {[%clk 0:00:04.6]} 63. Rxg5 {[%clk 0:00:43.3]} 1-0

[Event "Early-Titled-Tuesday-Blitz-February-27-2024"]
[Site "Chess.com"]
[Date "2024.02.27"]
[Round "10"]
[White "Kirill_Klukin"]
[Black "chesstrainer2042"]
[Result "1-0"]
[WhiteElo "2829"]
[BlackElo "2566"]
[TimeControl "180+1"]
[EndTime "9:55:39 PST"]
[Termination "Kirill_Klukin won on time"]

1. d4 {[%clk 0:03:00.9]} 1... Nf6 {[%clk 0:02:58.8]} 2. Nf3 {[%clk 0:03:00.7]}
2... c5 {[%clk 0:02:55.1]} 3. e3 {[%clk 0:03:00.4]} 3... g6 {[%clk 0:02:53.3]}
4. Be2 {[%clk 0:03:00]} 4... Bg7 {[%clk 0:02:48.6]} 5. O-O {[%clk 0:02:59.4]}
5... O-O {[%clk 0:02:47.1]} 6. dxc5 {[%clk 0:02:59.5]} 6... Qa5 {[%clk
0:02:45.2]} 7. a3 {[%clk 0:02:59.8]} 7... Qxc5 {[%clk 0:02:44.9]} 8. b4 {[%clk
0:03:00.1]} 8... Qc7 {[%clk 0:02:45.6]} 9. Bb2 {[%clk 0:03:00.7]} 9... d6 {[%clk
0:02:46.2]} 10. c4 {[%clk 0:02:58.7]} 10... Nc6 {[%clk 0:02:41.4]} 11. Nc3
{[%clk 0:02:58.7]} 11... Bf5 {[%clk 0:02:41.2]} 12. Rc1 {[%clk 0:02:59.1]} 12...
Qd7 {[%clk 0:02:39.7]} 13. Qb3 {[%clk 0:02:57.8]} 13... Rac8 {[%clk 0:02:22.2]}
14. Rfd1 {[%clk 0:02:57.4]} 14... Qd8 {[%clk 0:02:11.6]} 15. c5 {[%clk
0:02:51.5]} 15... Be6 {[%clk 0:02:07.6]} 16. Qa4 {[%clk 0:02:51.4]} 16... a6
{[%clk 0:02:03.8]} 17. cxd6 {[%clk 0:02:46]} 17... exd6 {[%clk 0:02:03.7]} 18.
b5 {[%clk 0:02:34.2]} 18... axb5 {[%clk 0:02:03.3]} 19. Nxb5 {[%clk 0:02:34.7]}
19... d5 {[%clk 0:02:03.9]} 20. Nfd4 {[%clk 0:02:28.2]} 20... Qb6 {[%clk
0:01:39.9]} 21. Rb1 {[%clk 0:02:12.1]} 21... Ra8 {[%clk 0:01:36.7]} 22. Qb3
{[%clk 0:02:11.8]} 22... Na5 {[%clk 0:01:36.9]} 23. Qb4 {[%clk 0:02:11.9]} 23...
Bd7 {[%clk 0:01:25.2]} 24. Qe1 {[%clk 0:01:47]} 24... Ne4 {[%clk 0:01:15.9]} 25.
Nc3 {[%clk 0:01:42.8]} 25... Qc5 {[%clk 0:01:04.5]} 26. Nxe4 {[%clk 0:01:27.6]}
26... dxe4 {[%clk 0:01:04]} 27. Bc3 {[%clk 0:01:10.9]} 27... Qg5 {[%clk
0:00:55.9]} 28. Bb4 {[%clk 0:01:06.9]} 28... Rfe8 {[%clk 0:00:49.2]} 29. g3
{[%clk 0:01:01.9]} 29... Nc6 {[%clk 0:00:36.9]} 30. h4 {[%clk 0:00:56]} 30...
Qf6 {[%clk 0:00:25.3]} 31. Nb5 {[%clk 0:00:48.1]} 31... Nxb4 {[%clk 0:00:24.5]}
32. axb4 {[%clk 0:00:39]} 32... Bxb5 {[%clk 0:00:23.7]} 33. Bxb5 {[%clk
0:00:39.4]} 33... Red8 {[%clk 0:00:24.3]} 34. Bc4 {[%clk 0:00:38]} 34... Qc3
{[%clk 0:00:21.6]} 35. Qxc3 {[%clk 0:00:30.5]} 35... Bxc3 {[%clk 0:00:20.9]} 36.
Bd5 {[%clk 0:00:30]} 36... Rab8 {[%clk 0:00:16.5]} 37. Bxe4 {[%clk 0:00:23.4]}
37... Rxd1+ {[%clk 0:00:15.3]} 38. Rxd1 {[%clk 0:00:24.3]} 38... Bxb4 {[%clk
0:00:15.8]} 39. Rd7 {[%clk 0:00:25]} 39... f5 {[%clk 0:00:15.7]} 40. Bxb7 {[%clk
0:00:23.6]} 40... Bf8 {[%clk 0:00:14.5]} 41. Bd5+ {[%clk 0:00:23.7]} 41... Kh8
{[%clk 0:00:14]} 42. h5 {[%clk 0:00:24.3]} 42... Bg7 {[%clk 0:00:13.4]} 43. Bf7
{[%clk 0:00:22]} 43... gxh5 {[%clk 0:00:11]} 44. Bxh5 {[%clk 0:00:22.9]} 44...
Rf8 {[%clk 0:00:09.1]} 45. Kg2 {[%clk 0:00:23]} 45... Be5 {[%clk 0:00:09.1]} 46.
Be2 {[%clk 0:00:22.5]} 46... Bb8 {[%clk 0:00:04.9]} 47. Bd3 {[%clk 0:00:22.5]}
1-0

[Event "Early-Titled-Tuesday-Blitz-February-27-2024"]
[Site "Chess.com"]
[Date "2024.02.27"]
[Round "10"]
[White "noblerone"]
[Black "dpopadic"]
[Result "1-0"]
[WhiteElo "2490"]
[BlackElo "2349"]
[TimeControl "180+1"]
[EndTime "9:55:39 PST"]
[Termination "noblerone won on time"]

1. d4 {[%clk 0:02:46.5]} 1... Nf6 {[%clk 0:02:59.1]} 2. c4 {[%clk 0:02:37.2]}
2... g6 {[%clk 0:02:58.1]} 3. Nc3 {[%clk 0:02:37]} 3... Bg7 {[%clk 0:02:57.5]}
4. Nf3 {[%clk 0:02:36.7]} 4... d6 {[%clk 0:02:58]} 5. Bg5 {[%clk 0:02:35.6]}
5... O-O {[%clk 0:02:58.3]} 6. e3 {[%clk 0:02:35.9]} 6... c5 {[%clk 0:02:58.1]}
7. d5 {[%clk 0:02:34.6]} 7... Na6 {[%clk 0:02:58]} 8. Be2 {[%clk 0:02:35.1]}
8... Nc7 {[%clk 0:02:57.2]} 9. O-O {[%clk 0:02:33.5]} 9... a6 {[%clk 0:02:57.4]}
10. a4 {[%clk 0:02:33.6]} 10... Rb8 {[%clk 0:02:56.9]} 11. h3 {[%clk 0:02:28]}
11... Bd7 {[%clk 0:02:55.9]} 12. a5 {[%clk 0:02:22.3]} 12... b5 {[%clk
0:02:50.1]} 13. axb6 {[%clk 0:02:18.3]} 13... Rxb6 {[%clk 0:02:49.3]} 14. Qc2
{[%clk 0:02:14.8]} 14... Qb8 {[%clk 0:02:44.1]} 15. Ra2 {[%clk 0:02:12.8]} 15...
Rb4 {[%clk 0:02:26]} 16. Rfa1 {[%clk 0:02:03.7]} 16... e5 {[%clk 0:02:08]} 17.
Nd2 {[%clk 0:01:57.6]} 17... h6 {[%clk 0:01:55.7]} 18. Bh4 {[%clk 0:01:54.5]}
18... Bf5 {[%clk 0:01:53.8]} 19. e4 {[%clk 0:01:52.6]} 19... Bd7 {[%clk
0:01:53.6]} 20. Bxf6 {[%clk 0:01:35.5]} 20... Bxf6 {[%clk 0:01:51.8]} 21. b3
{[%clk 0:01:35.4]} 21... Bg5 {[%clk 0:01:48.9]} 22. Bd1 {[%clk 0:01:30.2]} 22...
Qc8 {[%clk 0:01:37.5]} 23. Qd3 {[%clk 0:01:26.1]} 23... f5 {[%clk 0:01:28.2]}
24. Nf3 {[%clk 0:01:22.3]} 24... Bf6 {[%clk 0:01:24]} 25. Bc2 {[%clk 0:01:12.1]}
25... f4 {[%clk 0:01:20.1]} 26. Bd1 {[%clk 0:00:57.2]} 26... Bg7 {[%clk
0:01:17.8]} 27. Nh2 {[%clk 0:00:57.5]} 27... h5 {[%clk 0:01:14.6]} 28. Nf3
{[%clk 0:00:55.1]} 28... Bh6 {[%clk 0:01:11.8]} 29. h4 {[%clk 0:00:52.9]} 29...
Qd8 {[%clk 0:01:09.2]} 30. Nb1 {[%clk 0:00:49.2]} 30... Bg4 {[%clk 0:01:06.3]}
31. Nbd2 {[%clk 0:00:49.6]} 31... Qe7 {[%clk 0:01:02.1]} 32. Ra4 {[%clk
0:00:39.3]} 32... Rxa4 {[%clk 0:00:55]} 33. Rxa4 {[%clk 0:00:38.1]} 33... Rb8
{[%clk 0:00:54.5]} 34. Qc3 {[%clk 0:00:37.2]} 34... Bd7 {[%clk 0:00:41.7]} 35.
Ra1 {[%clk 0:00:34.7]} 35... Qd8 {[%clk 0:00:40]} 36. Qa5 {[%clk 0:00:31.4]}
36... Qc8 {[%clk 0:00:34.5]} 37. Rb1 {[%clk 0:00:30.1]} 37... Rb4 {[%clk
0:00:32.2]} 38. Ne1 {[%clk 0:00:27.4]} 38... Qb7 {[%clk 0:00:29.3]} 39. Qa3
{[%clk 0:00:26.4]} 39... Bf8 {[%clk 0:00:23.7]} 40. Nd3 {[%clk 0:00:26.6]} 40...
Rb6 {[%clk 0:00:22.9]} 41. b4 {[%clk 0:00:26]} 41... Be7 {[%clk 0:00:19.2]} 42.
Bc2 {[%clk 0:00:25.7]} 42... cxb4 {[%clk 0:00:18]} 43. Rxb4 {[%clk 0:00:24.8]}
43... Bxh4 {[%clk 0:00:15.4]} 44. Nf3 {[%clk 0:00:23.3]} 44... Be7 {[%clk
0:00:14.9]} 45. Rxb6 {[%clk 0:00:23.1]} 45... Qxb6 {[%clk 0:00:14.6]} 46. c5
{[%clk 0:00:21.9]} 46... dxc5 {[%clk 0:00:13.9]} 47. Ndxe5 {[%clk 0:00:22.3]}
47... Be8 {[%clk 0:00:13.4]} 48. Bb3 {[%clk 0:00:20.9]} 48... c4 {[%clk
0:00:13.3]} 49. Qxe7 {[%clk 0:00:19.2]} 49... cxb3 {[%clk 0:00:07.8]} 50. d6
{[%clk 0:00:19.8]} 50... b2 {[%clk 0:00:06.8]} 51. dxc7 {[%clk 0:00:20]} 51...
b1=Q+ {[%clk 0:00:06.7]} 52. Kh2 {[%clk 0:00:20.9]} 1-0